[Event "Late-Titled-Tuesday-Blitz-December-26-2023"]
[Site "Chess.com"]
[Date "2023.12.26"]
[Round "6"]
[White "thechesscorner64"]
[Black "Camilla_Lee"]
[Result "0-1"]
[WhiteElo "2442"]
[BlackElo "2601"]
[TimeControl "180+1"]
[EndTime "15:08:36 PST"]
[Termination "Camilla_Lee won by checkmate"]

1. e4 {[%clk 0:03:00.4]} 1... e5 {[%clk 0:03:00.3]} 2. Nf3 {[%clk 0:02:59.6]}
2... Nc6 {[%clk 0:03:00.5]} 3. Bc4 {[%clk 0:02:56.2]} 3... Nf6 {[%clk
0:03:00.4]} 4. d3 {[%clk 0:02:55.7]} 4... Be7 {[%clk 0:03:00.1]} 5. Nc3 {[%clk
0:02:46.3]} 5... d6 {[%clk 0:02:59.2]} 6. h3 {[%clk 0:02:40.2]} 6... O-O {[%clk
0:02:59.2]} 7. Nd5 {[%clk 0:02:29.7]} 7... Na5 {[%clk 0:02:50.1]} 8. Nxe7+
{[%clk 0:02:27.8]} 8... Qxe7 {[%clk 0:02:49.4]} 9. Bb3 {[%clk 0:02:28.7]} 9...
Nxb3 {[%clk 0:02:41.5]} 10. axb3 {[%clk 0:02:29.6]} 10... c5 {[%clk 0:02:35.3]}
11. O-O {[%clk 0:02:19.8]} 11... h6 {[%clk 0:02:35.4]} 12. c3 {[%clk 0:02:18.9]}
12... Bd7 {[%clk 0:02:28.4]} 13. Re1 {[%clk 0:02:17.4]} 13... Bc6 {[%clk
0:02:04.1]} 14. Nh4 {[%clk 0:01:57.3]} 14... Qc7 {[%clk 0:02:00.1]} 15. Qf3
{[%clk 0:01:50.8]} 15... Nh7 {[%clk 0:01:51.1]} 16. Nf5 {[%clk 0:01:47.6]} 16...
Bd7 {[%clk 0:01:50.5]} 17. Nxh6+ {[%clk 0:01:33.3]} 17... gxh6 {[%clk 0:01:47]}
18. Bxh6 {[%clk 0:01:34.2]} 18... Kh8 {[%clk 0:01:45.3]} 19. Bxf8 {[%clk
0:01:29.4]} 19... Rxf8 {[%clk 0:01:46.2]} 20. Rxa7 {[%clk 0:01:28.8]} 20... Qb6
{[%clk 0:01:46.3]} 21. Ra3 {[%clk 0:01:19.1]} 21... Be6 {[%clk 0:01:46.9]} 22.
Rea1 {[%clk 0:01:18.3]} 22... Qd8 {[%clk 0:01:21.4]} 23. Ra7 {[%clk 0:01:12.9]}
23... Qe7 {[%clk 0:01:19]} 24. d4 {[%clk 0:01:08.3]} 24... cxd4 {[%clk
0:01:17.9]} 25. cxd4 {[%clk 0:01:09.2]} 25... exd4 {[%clk 0:01:18.8]} 26. Qd3
{[%clk 0:00:52.6]} 26... Qf6 {[%clk 0:01:18.1]} 27. Rxb7 {[%clk 0:00:49.2]}
27... Ng5 {[%clk 0:01:18.3]} 28. Rba7 {[%clk 0:00:42.8]} 28... Rg8 {[%clk
0:01:12.9]} 29. Kf1 {[%clk 0:00:29.6]} 29... Qe5 {[%clk 0:01:00.3]} 30. Ra8
{[%clk 0:00:27.5]} 30... Nxe4 {[%clk 0:00:55.7]} 31. Rxg8+ {[%clk 0:00:26.2]}
31... Kxg8 {[%clk 0:00:56.6]} 32. f3 {[%clk 0:00:18]} 32... Ng3+ {[%clk
0:00:49.3]} 33. Kf2 {[%clk 0:00:18.4]} 33... Nf5 {[%clk 0:00:49.6]} 34. Ra8+
{[%clk 0:00:16.9]} 34... Kg7 {[%clk 0:00:49.6]} 35. Qd2 {[%clk 0:00:17]} 35...
Qg3+ {[%clk 0:00:42.1]} 36. Kg1 {[%clk 0:00:11.6]} 36... Bxb3 {[%clk 0:00:40.3]}
37. Rb8 {[%clk 0:00:10.1]} 37... Bd5 {[%clk 0:00:39.5]} 38. h4 {[%clk
0:00:05.3]} 38... Qxh4 {[%clk 0:00:35.2]} 39. Qf2 {[%clk 0:00:04.7]} 39... Qf4
{[%clk 0:00:34.5]} 40. Rb5 {[%clk 0:00:02.6]} 40... Bc4 {[%clk 0:00:27.3]} 41.
Rxf5 {[%clk 0:00:01.8]} 41... Qxf5 {[%clk 0:00:24.2]} 42. Qxd4+ {[%clk
0:00:02.5]} 42... Qe5 {[%clk 0:00:23.4]} 43. Qxc4 {[%clk 0:00:03.4]} 43... Qxb2
{[%clk 0:00:21.9]} 44. Qg4+ {[%clk 0:00:03.7]} 44... Kf6 {[%clk 0:00:21.6]} 45.
Qf4+ {[%clk 0:00:04.1]} 45... Ke6 {[%clk 0:00:22.2]} 46. Qg4+ {[%clk 0:00:04.5]}
46... Kd5 {[%clk 0:00:19.2]} 47. Qe4+ {[%clk 0:00:04.9]} 47... Kc5 {[%clk
0:00:19.7]} 48. Qf5+ {[%clk 0:00:04.2]} 48... d5 {[%clk 0:00:19]} 49. Qxf7
{[%clk 0:00:03.2]} 49... Qc1+ {[%clk 0:00:19]} 50. Kf2 {[%clk 0:00:03.5]} 50...
Qd2+ {[%clk 0:00:18.9]} 51. Kf1 {[%clk 0:00:03.5]} 51... Qd3+ {[%clk 0:00:18.4]}
52. Kf2 {[%clk 0:00:03.6]} 52... Qd4+ {[%clk 0:00:13.3]} 53. Kf1 {[%clk
0:00:03.4]} 53... Qc4+ {[%clk 0:00:13.7]} 54. Kf2 {[%clk 0:00:03.9]} 54... Qc2+
{[%clk 0:00:11.8]} 55. Kf1 {[%clk 0:00:04.3]} 55... Qb1+ {[%clk 0:00:03.5]} 56.
Kf2 {[%clk 0:00:04.7]} 56... Qa2+ {[%clk 0:00:04]} 57. Kf1 {[%clk 0:00:04.9]}
57... Qa6+ {[%clk 0:00:04.3]} 58. Kf2 {[%clk 0:00:05]} 58... Kc4 {[%clk
0:00:03.4]} 59. Qe8 {[%clk 0:00:02.6]} 59... d4 {[%clk 0:00:03]} 60. Qe2+ {[%clk
0:00:02.1]} 60... d3 {[%clk 0:00:03.7]} 61. Qe4+ {[%clk 0:00:02.3]} 61... Kc3
{[%clk 0:00:04.1]} 62. Qe5+ {[%clk 0:00:02.3]} 62... Kc2 {[%clk 0:00:03.9]} 63.
Qe4 {[%clk 0:00:02.4]} 63... Qa3 {[%clk 0:00:03.4]} 64. Ke3 {[%clk 0:00:02.5]}
64... Qc3 {[%clk 0:00:02.4]} 65. f4 {[%clk 0:00:03]} 65... Qd2+ {[%clk
0:00:02.3]} 66. Kd4 {[%clk 0:00:03]} 66... Qc3+ {[%clk 0:00:02.5]} 67. Ke3
{[%clk 0:00:03.4]} 67... Qe1+ {[%clk 0:00:03.1]} 68. Kd4 {[%clk 0:00:03.9]}
68... Qxe4+ {[%clk 0:00:03.9]} 69. Kxe4 {[%clk 0:00:04.5]} 69... d2 {[%clk
0:00:04.8]} 70. f5 {[%clk 0:00:04.9]} 70... d1=Q {[%clk 0:00:05.7]} 71. f6
{[%clk 0:00:05.6]} 71... Qd3+ {[%clk 0:00:06.1]} 72. Kf4 {[%clk 0:00:05.3]}
72... Qg6 {[%clk 0:00:06.1]} 73. Ke5 {[%clk 0:00:05.3]} 73... Qxg2 {[%clk
0:00:05.1]} 74. Ke6 {[%clk 0:00:05.6]} 74... Qc6+ {[%clk 0:00:05]} 75. Ke7
{[%clk 0:00:05.9]} 75... Qc5+ {[%clk 0:00:05.2]} 76. Ke6 {[%clk 0:00:06.1]}
76... Qe3+ {[%clk 0:00:05.4]} 77. Kf7 {[%clk 0:00:05.6]} 77... Kd3 {[%clk
0:00:05.3]} 78. Kg7 {[%clk 0:00:05.8]} 78... Qg5+ {[%clk 0:00:05.6]} 79. Kf7
{[%clk 0:00:06]} 79... Kd4 {[%clk 0:00:06]} 80. Ke6 {[%clk 0:00:04.9]} 80...
Qe5+ {[%clk 0:00:06.1]} 81. Kf7 {[%clk 0:00:05.4]} 81... Kd5 {[%clk 0:00:06]}
82. Kg6 {[%clk 0:00:05.3]} 82... Qg3+ {[%clk 0:00:06.1]} 83. Kh7 {[%clk
0:00:05.3]} 83... Qh4+ {[%clk 0:00:05.8]} 84. Kg8 {[%clk 0:00:05.3]} 84... Qxf6
{[%clk 0:00:05.6]} 85. Kh7 {[%clk 0:00:05.3]} 85... Qg5 {[%clk 0:00:06.1]} 86.
Kh8 {[%clk 0:00:04.7]} 86... Ke6 {[%clk 0:00:07]} 87. Kh7 {[%clk 0:00:05.5]}
87... Kf7 {[%clk 0:00:07.9]} 88. Kh8 {[%clk 0:00:06.2]} 88... Qh5# {[%clk
0:00:08.8]} 0-1

[Event "Late-Titled-Tuesday-Blitz-December-26-2023"]
[Site "Chess.com"]
[Date "2023.12.26"]
[Round "6"]
[White "AGW2016"]
[Black "sofaceindisguise"]
[Result "1/2-1/2"]
[WhiteElo "2578"]
[BlackElo "2728"]
[TimeControl "180+1"]
[EndTime "15:08:39 PST"]
[Termination "Game drawn - insufficient material"]

1. d4 {[%clk 0:03:00.9]} 1... Nf6 {[%clk 0:02:59.8]} 2. Nc3 {[%clk 0:03:01.3]}
2... d5 {[%clk 0:03:00]} 3. Bf4 {[%clk 0:03:02]} 3... a6 {[%clk 0:02:59.7]} 4.
e3 {[%clk 0:03:02.3]} 4... b5 {[%clk 0:03:00]} 5. Nf3 {[%clk 0:03:01.2]} 5...
Bb7 {[%clk 0:03:00]} 6. Ne5 {[%clk 0:03:01.5]} 6... e6 {[%clk 0:02:59.4]} 7. Bd3
{[%clk 0:02:58.9]} 7... c5 {[%clk 0:02:59.6]} 8. O-O {[%clk 0:02:59.1]} 8... Nc6
{[%clk 0:02:59.4]} 9. a3 {[%clk 0:02:57.4]} 9... c4 {[%clk 0:02:59.2]} 10. Be2
{[%clk 0:02:57.8]} 10... Bd6 {[%clk 0:02:56.2]} 11. Nxc6 {[%clk 0:02:53.8]}
11... Bxc6 {[%clk 0:02:57.1]} 12. Bxd6 {[%clk 0:02:54.4]} 12... Qxd6 {[%clk
0:02:56.9]} 13. b4 {[%clk 0:02:55.2]} 13... O-O {[%clk 0:02:52.5]} 14. Qb1
{[%clk 0:02:49.1]} 14... a5 {[%clk 0:02:50.6]} 15. bxa5 {[%clk 0:02:38.3]} 15...
Rxa5 {[%clk 0:02:51.5]} 16. Qb4 {[%clk 0:02:39]} 16... Qc7 {[%clk 0:02:45.5]}
17. Rfb1 {[%clk 0:02:30.5]} 17... Rfa8 {[%clk 0:02:41.3]} 18. Qc5 {[%clk
0:02:14.4]} 18... Nd7 {[%clk 0:02:36.2]} 19. Qe7 {[%clk 0:02:13.9]} 19... Qa7
{[%clk 0:02:08.4]} 20. Bh5 {[%clk 0:01:43.6]} 20... g6 {[%clk 0:02:07.7]} 21.
Bg4 {[%clk 0:01:44]} 21... Nb6 {[%clk 0:01:50.5]} 22. Qc5 {[%clk 0:01:41.2]}
22... Rc8 {[%clk 0:01:32.9]} 23. Qd6 {[%clk 0:01:08.2]} 23... Qc7 {[%clk
0:01:27.1]} 24. Qc5 {[%clk 0:01:03.2]} 24... Be8 {[%clk 0:01:26.1]} 25. Qb4
{[%clk 0:00:59.1]} 25... Rca8 {[%clk 0:01:25.5]} 26. h4 {[%clk 0:00:48.7]} 26...
h5 {[%clk 0:01:24.3]} 27. Bf3 {[%clk 0:00:49.2]} 27... f5 {[%clk 0:01:14.4]} 28.
g3 {[%clk 0:00:31.5]} 28... Kf7 {[%clk 0:01:14]} 29. Ne2 {[%clk 0:00:31.1]}
29... Qe7 {[%clk 0:01:11.4]} 30. Qc5 {[%clk 0:00:29.1]} 30... Qxc5 {[%clk
0:01:10.8]} 31. dxc5 {[%clk 0:00:29.7]} 31... Na4 {[%clk 0:01:10.3]} 32. Nd4
{[%clk 0:00:28.9]} 32... Nxc5 {[%clk 0:01:09]} 33. Rb4 {[%clk 0:00:28.7]} 33...
Na4 {[%clk 0:01:07.1]} 34. Rab1 {[%clk 0:00:27.8]} 34... Nc3 {[%clk 0:01:07.3]}
35. R1b2 {[%clk 0:00:28.5]} 35... Rxa3 {[%clk 0:01:06.5]} 36. Kg2 {[%clk
0:00:26.7]} 36... Kf6 {[%clk 0:01:06.9]} 37. Ne2 {[%clk 0:00:27.1]} 37... Nxe2
{[%clk 0:01:05.9]} 38. Bxe2 {[%clk 0:00:28]} 38... Ra2 {[%clk 0:01:05.4]} 39.
Bf3 {[%clk 0:00:28.1]} 39... Rxb2 {[%clk 0:01:05.4]} 40. Rxb2 {[%clk 0:00:29]}
40... Ke7 {[%clk 0:01:05]} 41. Be2 {[%clk 0:00:28.8]} 41... Kd6 {[%clk
0:01:05.1]} 42. Kf3 {[%clk 0:00:29.7]} 42... Kc5 {[%clk 0:01:05.5]} 43. Kf4
{[%clk 0:00:29.9]} 43... b4 {[%clk 0:01:03.7]} 44. Ke5 {[%clk 0:00:30.5]} 44...
Bb5 {[%clk 0:00:58.6]} 45. Rb1 {[%clk 0:00:27]} 45... Ra2 {[%clk 0:00:57.8]} 46.
Bd1 {[%clk 0:00:23.5]} 46... Ba4 {[%clk 0:00:56.6]} 47. Rc1 {[%clk 0:00:21.9]}
47... Bd7 {[%clk 0:00:29.2]} 48. f4 {[%clk 0:00:14.8]} 48... Ra6 {[%clk
0:00:27]} 49. Be2 {[%clk 0:00:10.7]} 49... Bb5 {[%clk 0:00:26.5]} 50. Kf6 {[%clk
0:00:07.3]} 50... d4 {[%clk 0:00:25.3]} 51. exd4+ {[%clk 0:00:06.7]} 51... Kxd4
{[%clk 0:00:26.2]} 52. Kxg6 {[%clk 0:00:06.9]} 52... Ke3 {[%clk 0:00:25.9]} 53.
Bxh5 {[%clk 0:00:06.7]} 53... Kd2 {[%clk 0:00:26.4]} 54. Rb1 {[%clk 0:00:04.4]}
54... Ra4 {[%clk 0:00:19.5]} 55. Bd1 {[%clk 0:00:04.9]} 55... c3 {[%clk
0:00:19.4]} 56. h5 {[%clk 0:00:05.5]} 56... Be8+ {[%clk 0:00:13.8]} 57. Kg5
{[%clk 0:00:05.1]} 57... Ra7 {[%clk 0:00:08.5]} 58. h6 {[%clk 0:00:04]} 58...
Bc6 {[%clk 0:00:09]} 59. Bh5 {[%clk 0:00:03.6]} 59... Kxc2 {[%clk 0:00:08.5]}
60. Rxb4 {[%clk 0:00:04.1]} 60... Bd5 {[%clk 0:00:09.1]} 61. Bg6 {[%clk
0:00:04.2]} 61... Kd2 {[%clk 0:00:09.3]} 62. h7 {[%clk 0:00:04.9]} 62... Rxh7
{[%clk 0:00:09.4]} 63. Bxh7 {[%clk 0:00:05.3]} 63... c2 {[%clk 0:00:10.3]} 64.
Rb2 {[%clk 0:00:05.5]} 64... Kc3 {[%clk 0:00:10.8]} 65. Rxc2+ {[%clk 0:00:06.4]}
65... Kxc2 {[%clk 0:00:11.7]} 66. Kf6 {[%clk 0:00:07.2]} 66... Kd3 {[%clk
0:00:12]} 67. Bg8 {[%clk 0:00:07.9]} 67... Ke3 {[%clk 0:00:12.1]} 68. Bxe6
{[%clk 0:00:08.4]} 68... Bb7 {[%clk 0:00:06.9]} 69. Bxf5 {[%clk 0:00:09.1]}
69... Kf3 {[%clk 0:00:07.4]} 70. Ke5 {[%clk 0:00:06]} 70... Kxg3 {[%clk
0:00:07.5]} 71. Be4 {[%clk 0:00:06.6]} 71... Bc8 {[%clk 0:00:07.6]} 72. Bf5
{[%clk 0:00:07.3]} 72... Bb7 {[%clk 0:00:07.9]} 73. Be6 {[%clk 0:00:07.9]} 73...
Kh4 {[%clk 0:00:07.8]} 74. f5 {[%clk 0:00:08.4]} 74... Kg5 {[%clk 0:00:08.4]}
75. f6 {[%clk 0:00:09]} 75... Kg6 {[%clk 0:00:08.9]} 76. Bf5+ {[%clk 0:00:07.5]}
76... Kf7 {[%clk 0:00:09.1]} 77. Bg4 {[%clk 0:00:07.9]} 77... Kf8 {[%clk
0:00:09.4]} 78. Bh5 {[%clk 0:00:08.5]} 78... Bc6 {[%clk 0:00:09.8]} 79. Kd6
{[%clk 0:00:08.7]} 79... Ba4 {[%clk 0:00:10.3]} 80. Be8 {[%clk 0:00:08.9]} 80...
Bxe8 {[%clk 0:00:10.2]} 81. f7 {[%clk 0:00:09.8]} 81... Ba4 {[%clk 0:00:10.4]}
82. Ke5 {[%clk 0:00:09.9]} 82... Bc2 {[%clk 0:00:11.3]} 83. Kf6 {[%clk
0:00:08.2]} 83... Bb1 {[%clk 0:00:12.2]} 84. Kg5 {[%clk 0:00:09.1]} 84... Ba2
{[%clk 0:00:12.6]} 85. Kh4 {[%clk 0:00:10]} 85... Bxf7 {[%clk 0:00:13.3]}
1/2-1/2

[Event "Late-Titled-Tuesday-Blitz-December-26-2023"]
[Site "Chess.com"]
[Date "2023.12.26"]
[Round "6"]
[White "DuleMudule"]
[Black "UmutErdemGunduz"]
[Result "0-1"]
[WhiteElo "2904"]
[BlackElo "2717"]
[TimeControl "180+1"]
[EndTime "15:08:44 PST"]
[Termination "UmutErdemGunduz won by checkmate"]

1. d4 {[%clk 0:03:00.9]} 1... Nf6 {[%clk 0:02:58.7]} 2. Bg5 {[%clk 0:03:01.4]}
2... Ne4 {[%clk 0:02:58.7]} 3. h4 {[%clk 0:03:01.5]} 3... c5 {[%clk 0:02:58.4]}
4. dxc5 {[%clk 0:03:02.4]} 4... Qa5+ {[%clk 0:02:55.4]} 5. Nd2 {[%clk
0:03:02.8]} 5... Nxg5 {[%clk 0:02:55.7]} 6. hxg5 {[%clk 0:03:03.4]} 6... Qxc5
{[%clk 0:02:56.6]} 7. g6 {[%clk 0:03:04]} 7... fxg6 {[%clk 0:02:56.8]} 8. Nb3
{[%clk 0:03:04.1]} 8... Qb6 {[%clk 0:02:54.9]} 9. Nf3 {[%clk 0:03:04.6]} 9...
Nc6 {[%clk 0:02:54.8]} 10. e3 {[%clk 0:03:05.2]} 10... e6 {[%clk 0:02:54]} 11.
Bd3 {[%clk 0:03:05.8]} 11... Kf7 {[%clk 0:02:27.8]} 12. Ng5+ {[%clk 0:02:57.6]}
12... Kg8 {[%clk 0:02:27.1]} 13. Bxg6 {[%clk 0:02:33.5]} 13... hxg6 {[%clk
0:02:17.9]} 14. Rxh8+ {[%clk 0:02:32.7]} 14... Kxh8 {[%clk 0:02:18.1]} 15. Qf3
{[%clk 0:02:33.3]} 15... Bb4+ {[%clk 0:01:37]} 16. c3 {[%clk 0:02:29]} 16... Qb5
{[%clk 0:01:32.7]} 17. Qh3+ {[%clk 0:02:16.5]} 17... Kg8 {[%clk 0:01:32.8]} 18.
Qh7+ {[%clk 0:02:17.1]} 18... Kf8 {[%clk 0:01:33.4]} 19. Qh8+ {[%clk 0:02:17.7]}
19... Ke7 {[%clk 0:01:34]} 20. Qxg7+ {[%clk 0:02:18.3]} 20... Kd8 {[%clk
0:01:32.9]} 21. Nf7+ {[%clk 0:02:14.4]} 21... Kc7 {[%clk 0:01:32.3]} 22. cxb4
{[%clk 0:02:13.3]} 22... Qxb4+ {[%clk 0:01:31.8]} 23. Kf1 {[%clk 0:02:13.1]}
23... b6 {[%clk 0:01:29.9]} 24. Kg1 {[%clk 0:02:10]} 24... Bb7 {[%clk
0:01:25.2]} 25. Rd1 {[%clk 0:02:10.2]} 25... Qf8 {[%clk 0:01:21.2]} 26. Qh7
{[%clk 0:01:46.5]} 26... Qe7 {[%clk 0:01:11.8]} 27. Qh2+ {[%clk 0:01:38.4]}
27... e5 {[%clk 0:01:11.1]} 28. Nd6 {[%clk 0:01:38.3]} 28... a5 {[%clk
0:01:03.9]} 29. a4 {[%clk 0:01:27.2]} 29... Rf8 {[%clk 0:01:01.1]} 30. Qg3
{[%clk 0:01:21.1]} 30... Qe6 {[%clk 0:01:00.6]} 31. Nc1 {[%clk 0:01:19.1]} 31...
Ba6 {[%clk 0:00:53.9]} 32. Ne4 {[%clk 0:01:17.7]} 32... d5 {[%clk 0:00:52.8]}
33. Nc3 {[%clk 0:01:16.9]} 33... Rd8 {[%clk 0:00:49.5]} 34. Nb5+ {[%clk
0:01:04]} 34... Kb7 {[%clk 0:00:42.8]} 35. Nd3 {[%clk 0:01:03.2]} 35... Qf5
{[%clk 0:00:29.4]} 36. Qh4 {[%clk 0:00:55]} 36... Rd7 {[%clk 0:00:21.7]} 37. Qh8
{[%clk 0:00:51.9]} 37... Qg4 {[%clk 0:00:15.6]} 38. f3 {[%clk 0:00:47.9]} 38...
Qxa4 {[%clk 0:00:14.6]} 39. Nc3 {[%clk 0:00:43.6]} 39... Qc2 {[%clk 0:00:14]}
40. Nxe5 {[%clk 0:00:42.8]} 40... Nxe5 {[%clk 0:00:13.8]} 41. Qxe5 {[%clk
0:00:43.7]} 41... Qxb2 {[%clk 0:00:14.3]} 42. Rxd5 {[%clk 0:00:42.7]} 42... Rxd5
{[%clk 0:00:13.2]} 43. Qxd5+ {[%clk 0:00:43.6]} 43... Ka7 {[%clk 0:00:13.9]} 44.
Qd7+ {[%clk 0:00:42.6]} 44... Bb7 {[%clk 0:00:13.9]} 45. Nb5+ {[%clk 0:00:40.8]}
45... Ka6 {[%clk 0:00:14.5]} 46. Nd6 {[%clk 0:00:40.9]} 46... Qa1+ {[%clk
0:00:11.8]} 47. Kh2 {[%clk 0:00:40.9]} 47... Qe5+ {[%clk 0:00:11.5]} 48. f4
{[%clk 0:00:41.3]} 48... Qh5+ {[%clk 0:00:11.7]} 49. Kg3 {[%clk 0:00:39.5]}
49... Qd5 {[%clk 0:00:09]} 50. e4 {[%clk 0:00:39.2]} 50... Qd3+ {[%clk
0:00:09.1]} 51. Kh4 {[%clk 0:00:39.3]} 51... Bxe4 {[%clk 0:00:08.6]} 52. Qc8+
{[%clk 0:00:32.7]} 52... Ka7 {[%clk 0:00:09.1]} 53. Qc7+ {[%clk 0:00:33.2]}
53... Ka6 {[%clk 0:00:09.7]} 54. Qc8+ {[%clk 0:00:27.7]} 54... Ka7 {[%clk
0:00:10.2]} 55. Qd7+ {[%clk 0:00:26.5]} 55... Ka6 {[%clk 0:00:10.4]} 56. Kg5
{[%clk 0:00:23.5]} 56... Qd5+ {[%clk 0:00:09.8]} 57. Kh6 {[%clk 0:00:22.4]}
57... Bf5 {[%clk 0:00:09.8]} 58. Qc7 {[%clk 0:00:21.3]} 58... a4 {[%clk
0:00:09.3]} 59. Nc8 {[%clk 0:00:14.3]} 59... Bxc8 {[%clk 0:00:09]} 60. Qxc8+
{[%clk 0:00:14.7]} 60... Ka5 {[%clk 0:00:08.4]} 61. Qc3+ {[%clk 0:00:14.6]}
61... Kb5 {[%clk 0:00:06.9]} 62. g4 {[%clk 0:00:15.1]} 62... Qe4 {[%clk
0:00:05.6]} 63. Qb2+ {[%clk 0:00:12.6]} 63... Ka5 {[%clk 0:00:05.8]} 64. Qd2+
{[%clk 0:00:12.8]} 64... Ka6 {[%clk 0:00:05.9]} 65. g5 {[%clk 0:00:13.2]} 65...
b5 {[%clk 0:00:05.4]} 66. Qd6+ {[%clk 0:00:12.8]} 66... Ka5 {[%clk 0:00:05.9]}
67. Qxg6 {[%clk 0:00:12.7]} 67... Qxg6+ {[%clk 0:00:05.7]} 68. Kxg6 {[%clk
0:00:11.9]} 68... a3 {[%clk 0:00:06.6]} 69. f5 {[%clk 0:00:09.9]} 69... a2
{[%clk 0:00:07.5]} 70. f6 {[%clk 0:00:10.8]} 70... a1=Q {[%clk 0:00:08.4]} 71.
f7 {[%clk 0:00:11.7]} 71... Qh8 {[%clk 0:00:06]} 72. Kf5 {[%clk 0:00:11.8]}
72... b4 {[%clk 0:00:05.2]} 73. Ke6 {[%clk 0:00:11.5]} 73... Qf8 {[%clk
0:00:03.1]} 74. g6 {[%clk 0:00:11.2]} 74... b3 {[%clk 0:00:03]} 75. Kf6 {[%clk
0:00:11.6]} 75... Qd8+ {[%clk 0:00:02.3]} 76. Kg7 {[%clk 0:00:10.8]} 76... Qd4+
{[%clk 0:00:02]} 77. Kg8 {[%clk 0:00:11.1]} 77... Qd5 {[%clk 0:00:01.8]} 78. Kf8
{[%clk 0:00:10.6]} 78... b2 {[%clk 0:00:01.9]} 79. g7 {[%clk 0:00:11.3]} 79...
b1=Q {[%clk 0:00:02.1]} 80. g8=Q {[%clk 0:00:12.2]} 80... Qb4+ {[%clk
0:00:02.1]} 81. Kg7 {[%clk 0:00:13.1]} 81... Qg4+ {[%clk 0:00:02.2]} 82. Kf8
{[%clk 0:00:13.3]} 82... Qd6+ {[%clk 0:00:02.8]} 83. Ke8 {[%clk 0:00:13.3]}
83... Qc8# {[%clk 0:00:03.4]} 0-1